fUST/lending_fUST_20240424
["ID","MTS","AMOUNT","RATE_DAILY","PERIOD"]
[323339190,1713906638786,-549.53648482,0.00011117,2]
[323339192,1713906638796,-244.18563066,0.00011117,2]
[323339195,1713906638805,-206.02600307,0.00011117,2]
[323339196,1713906638814,-564.51895848,0.00011117,2]
[323339198,1713906638824,-5801.77357762,0.00011117,2]
[323339200,1713906638833,-212.71867879,0.00011117,2]
[323339202,1713906638842,-154.84515485,0.00011117,2]
[323339204,1713906638851,-1578.09578874,0.00011117,2]
[323339206,1713906638860,-7866.94121737,0.00011117,2]
[323339208,1713906638869,-240.47928456,0.00011118,2]
[323339210,1713906638878,-1620.03238778,0.00011118,2]
[323339212,1713906638887,-883.09222158,0.00011118,2]
[323339214,1713906638897,-2435.22947892,0.00011118,2]
[323339216,1713906638906,-283.38557575,0.00011118,2]
[323339219,1713906638916,-247.22010741,0.00011118,2]
[323339221,1713906638925,-459.70738052,0.00011118,2]
[323339223,1713906638934,-204.24092821,0.00011118,2]
[323339225,1713906638943,-155.51855235,0.00011118,2]
[323339227,1713906638953,-633.19775205,0.00011118,2]
[323339229,1713906638962,-977.80653021,0.00011118,2]
[323339230,1713906638971,-8516.00427169,0.00011118,2]
[323339232,1713906638981,-468.44380318,0.00011118,2]
[323339234,1713906638990,-1202.20163216,0.00011118,2]
[323339236,1713906639000,-408.87824963,0.00011118,2]
[323339238,1713906639008,-701.94771615,0.00011118,2]
[323339240,1713906639018,-308.49906714,0.00011118,2]
[323339242,1713906639027,-207.89139513,0.00011118,2]
[323339244,1713906639036,-497.77042993,0.00011118,2]
[323339246,1713906639045,-200.75365949,0.00011119,2]
[323339249,1713906639055,-551.60185639,0.00011119,2]
[323339251,1713906639065,-54223.44307437,0.00011119,2]
[323339253,1713906639074,-526.34381075,0.00011119,2]
[323339255,1713906639083,-13022.13065503,0.00011122,2]
[323339256,1713906639093,-1353.7145572,0.0001123,2]
[323339258,1713906639102,-611.736492,0.00011323,2]
[323339260,1713906639112,-309.65937468,0.00012213,2]
[323339262,1713906639125,-420.0,0.00012213,2]
[323339265,1713906639134,-1608.97649909,0.00012214,2]
[323339266,1713906639143,-420.0,0.00012227,2]
[323339269,1713906639154,-309.65937468,0.00012342,2]
[323339271,1713906639164,-309.65937468,0.00012342,2]
[323339273,1713906639174,-203.50588859,0.00012342,2]
[323339275,1713906639183,-258.17604413,0.00012342,2]
[323339276,1713906639193,-309.65937468,0.00012343,2]
[323339279,1713906639202,-204.57691624,0.00012946,2]
[323339281,1713906639212,-587.0,0.0001342,2]
[323339283,1713906639221,-587.0,0.0001345,2]
[323339285,1713906639231,-5528.672814,0.00013699,2]
[323339303,1713906639400,-190.43221491,0.00013994,2]
[323339305,1713906639412,-155.51228557,0.00013994,2]
[323339307,1713906639422,-161.44973526,0.00013994,2]
[323339309,1713906639431,-927.73627561,0.00014,2]
[323339311,1713906639440,-823.0,0.00014745,2]
[323339313,1713906639450,-823.0,0.00014795,2]
[323339315,1713906639459,-204.57691624,0.0001499,2]
[323339317,1713906639469,-157.03688122,0.00015,2]
[323339319,1713906639479,-938.58206509,0.00015,2]
[323339321,1713906639488,-2099.47208497,0.00015,2]
[323339324,1713906639529,-154.84515485,0.00015,2]
[323339325,1713906639539,-628.221272,0.00015,2]
[323339328,1713906639549,-312.61134477,0.00015,2]
[323339330,1713906639559,-1675.82446385,0.00015,2]
[323339332,1713906639568,-2775.48792824,0.00015,2]
[323339334,1713906639578,-154.84515485,0.00015,2]
[323339336,1713906639587,-1152.0,0.00016201,2]
[323339338,1713906639596,-1152.0,0.00016274,2]
[323339340,1713906639607,-400.0,0.00016438,2]
[323339342,1713906639617,-272.57129579,0.000165,2]
[323339344,1713906639627,-204.57691624,0.00017034,2]
[323339345,1713906639637,-1613.0,0.00017801,2]
[323339348,1713906639647,-1613.0,0.00017902,2]
[323339350,1713906639657,-221.86358459,0.00017959,2]
[323339352,1713906639666,-6496.47710287,0.00018,2]
[323339354,1713906639676,-2081.40028862,0.00018,7]
[323339356,1713906639686,-155.13452116,0.00018,2]
[323339358,1713906639695,-249.69015605,0.00018014,2]
[323339360,1713906639705,-301.01360913,0.00018213,2]
[323339362,1713906639714,-153.0,0.00018867,2]
[323339364,1713906639723,-153.0,0.00018872,2]
[323339366,1713906639731,-153.0,0.00018872,2]
[323339368,1713906639740,-153.0,0.00018872,2]
[323339370,1713906639749,-153.0,0.00018872,2]
[323339372,1713906639759,-306.0,0.00018911,2]
[323339374,1713906639768,-153.0,0.00018911,2]
[323339376,1713906639777,-153.0,0.00018911,2]
[323339378,1713906639786,-153.0,0.00018911,2]
[323339379,1713906639795,-153.0,0.00018939,2]
[323339382,1713906639805,-153.0,0.00018939,2]
[323339384,1713906639814,-153.0,0.00018939,2]
[323339386,1713906639822,-154.1768932,0.00018939,2]
[323339388,1713906639832,-153.0,0.00018939,2]
[323339390,1713906639841,-153.0,0.00018939,2]
[323339392,1713906639850,-189.19295912,0.0001897,2]
[323339394,1713906639859,-405.849451,0.00018978,2]
[323339396,1713906639868,-1140.68681015,0.00018998,2]
[323339398,1713906639877,-637.9252794,0.00019,2]
[323339400,1713906639886,-154.84515485,0.00019,2]
[323339402,1713906639898,-155.0802538,0.00019,2]
[323339404,1713906639907,-154.9755911,0.00019,2]
[323339406,1713906639916,-918.44398606,0.00019076,2]
[323339408,1713906639925,-391.83802895,0.00019076,2]
[323339410,1713906639933,-188.81822926,0.00019076,2]
[323339412,1713906639942,-1158.3410573,0.00019076,2]
[323339414,1713906639951,-203.50832674,0.00019078,3]
[323339416,1713906639961,-204.57691624,0.00019078,2]
[323339418,1713906639970,-44444.0,0.00019078,2]
[323339420,1713906639979,-112381.38984642,0.00019177,2]
[323339422,1713906639988,-500.0,0.00019178,2]
[323339424,1713906639997,-500.0,0.00019178,2]
[323339426,1713906640006,-500.0,0.00019178,2]
[323339429,1713906640015,-500.0,0.00019178,2]
[323339431,1713906640024,-500.0,0.00019178,2]
[323339433,1713906640034,-520.67,0.00019178,2]
[323339435,1713906640043,-155.37728442,0.00019178,2]
[323339437,1713906640052,-500.0,0.00019178,2]
[323339439,1713906640061,-502.47912495,0.00019178,2]
[323339442,1713906640071,-500.0,0.00019178,2]
[323339444,1713906640080,-657.21,0.00019178,2]
[323339446,1713906640089,-904.57,0.00019178,2]
[323339448,1713906640099,-236.58344378,0.00019178,2]
[323339450,1713906640109,-500.0,0.00019178,2]
[323339452,1713906640123,-513.66,0.00019178,2]
[323339454,1713906640133,-500.0,0.00019178,2]
[323339456,1713906640142,-580.19,0.00019178,2]
[323339458,1713906640151,-587.07678689,0.00019178,2]
[323339460,1713906640161,-589.6,0.00019178,2]
[323339462,1713906640170,-500.0,0.00019178,2]
[323339464,1713906640179,-500.0,0.00019178,2]
[323339466,1713906640189,-1834.44,0.00019178,2]
[323339468,1713906640199,-281.23577967,0.00019178,2]
[323339470,1713906640210,-500.0,0.00019178,2]
[323339472,1713906640219,-500.0,0.00019178,2]
[323339474,1713906640228,-500.0,0.00019178,2]
[323339477,1713906640238,-500.0,0.00019178,2]
[323339479,1713906640250,-500.0,0.00019178,2]
[323339481,1713906640259,-500.0,0.00019178,2]
[323339484,1713906640268,-500.0,0.00019178,2]
[323339486,1713906640277,-500.0,0.00019178,2]
[323339488,1713906640286,-981.79,0.00019178,2]
[323339490,1713906640296,-503.92402627,0.00019178,2]
[323339492,1713906640305,-500.0,0.00019178,2]
[323339494,1713906640314,-500.0,0.00019178,2]
[323339496,1713906640323,-500.0,0.00019178,2]
[323339498,1713906640334,-500.0,0.00019178,2]
[323339499,1713906640346,-527.18,0.00019178,2]
[323339502,1713906640356,-500.0,0.00019178,2]
[323339504,1713906640365,-500.0,0.00019178,2]
[323339506,1713906640374,-500.0,0.00019178,2]
[323339508,1713906640383,-500.0,0.00019178,2]
[323339510,1713906640392,-500.0,0.00019178,2]
[323339512,1713906640402,-500.0,0.00019178,2]
[323339514,1713906640411,-500.0,0.00019178,2]
[323339516,1713906640420,-500.0,0.00019178,2]
[323339518,1713906640429,-500.0,0.00019178,2]
[323339520,1713906640439,-500.0,0.00019178,2]
[323339522,1713906640448,-504.27,0.00019178,2]
[323339523,1713906640458,-500.0,0.00019178,2]
[323339525,1713906640467,-500.0,0.00019178,2]
[323339527,1713906640477,-500.0,0.00019178,2]
[323339529,1713906640486,-500.0,0.00019178,2]
[323339531,1713906640495,-490.13024839,0.00019178,2]
[323339533,1713906640504,-500.0,0.00019178,2]
[323339535,1713906640514,-500.0,0.00019178,2]
[323339538,1713906640523,-500.0,0.00019178,2]
[323339540,1713906640533,-500.0,0.00019178,2]
[323339542,1713906640541,-500.0,0.00019178,2]
[323339544,1713906640550,-500.0,0.00019178,2]
[323339546,1713906640559,-500.0,0.00019178,2]
[323339548,1713906640568,-500.0,0.00019178,2]
[323339550,1713906640577,-1837.74,0.00019178,2]
[323339552,1713906640587,-2077.29,0.00019178,2]
[323339554,1713906640596,-500.0,0.00019178,2]
[323339556,1713906640604,-500.0,0.00019178,2]
[323339558,1713906640614,-500.0,0.00019178,2]
[323339560,1713906640623,-500.0,0.00019178,2]
[323339562,1713906640632,-500.0,0.00019178,2]
[323339564,1713906640641,-539.13972995,0.00019178,2]
[323339566,1713906640650,-397.41416398,0.00019178,2]
[323339568,1713906640659,-500.0,0.00019178,2]
[323339570,1713906640668,-500.0,0.00019178,2]
[323339571,1713906640678,-500.0,0.00019178,2]
[323339574,1713906640687,-2000.0,0.00019178,2]
[323339576,1713906640697,-500.0,0.00019178,2]
[323339578,1713906640706,-500.0,0.00019178,2]
[323339580,1713906640715,-371.61842543,0.00019178,2]
[323339582,1713906640724,-500.0,0.00019178,2]
[323339584,1713906640734,-847.99,0.00019178,2]
[323339586,1713906640743,-500.0,0.00019178,2]
[323339588,1713906640752,-500.0,0.00019178,2]
[323339590,1713906640761,-1200.21,0.00019178,2]
[323339592,1713906640770,-500.0,0.00019178,2]
[323339593,1713906640779,-1530.74,0.00019178,2]
[323339596,1713906640788,-500.0,0.00019178,2]
[323339598,1713906640798,-500.0,0.00019178,2]
[323339599,1713906640806,-1003.63,0.00019178,2]
[323339601,1713906640815,-1106.45,0.00019178,2]
[323339603,1713906640824,-500.0,0.00019178,2]
[323339606,1713906640834,-500.0,0.00019178,2]
[323339608,1713906640845,-1277.89,0.00019178,2]
[323339610,1713906640854,-500.0,0.00019178,2]
[323339612,1713906640863,-500.0,0.00019178,2]
[323339614,1713906640872,-500.0,0.00019178,2]
[323339616,1713906640881,-886.08,0.00019178,2]
[323339617,1713906640890,-504.6900771,0.00019178,2]
[323339620,1713906640900,-500.0,0.00019178,2]
[323339622,1713906640909,-500.0,0.00019178,2]
[323339624,1713906640917,-500.0,0.00019178,2]
[323339626,1713906640927,-714.28,0.00019178,2]
[323339628,1713906640936,-500.0,0.00019178,2]
[323339630,1713906640945,-500.0,0.00019178,2]
[323339632,1713906640956,-317.28151444,0.00019178,2]
[323339633,1713906640965,-500.0,0.00019178,2]
[323339636,1713906640975,-500.0,0.00019178,2]
[323339638,1713906640984,-1022.02,0.00019178,2]
[323339640,1713906640993,-546.63,0.00019178,2]
[323339642,1713906641002,-500.0,0.00019178,2]
[323339643,1713906641011,-500.0,0.00019178,2]
[323339646,1713906641020,-500.0,0.00019178,2]
[323339648,1713906641030,-905.67,0.00019178,2]
[323339650,1713906641039,-500.0,0.00019178,2]
[323339652,1713906641047,-500.0,0.00019178,2]
[323339654,1713906641056,-711.87,0.00019178,2]
[323339656,1713906641066,-500.0,0.00019178,2]
[323339658,1713906641076,-500.0,0.00019178,2]
[323339660,1713906641085,-850.29,0.00019178,2]
[323339662,1713906641094,-500.0,0.00019178,2]
[323339664,1713906641103,-500.0,0.00019178,2]
[323339666,1713906641117,-500.0,0.00019178,2]
[323339668,1713906641126,-500.0,0.00019178,2]
[323339670,1713906641135,-3203.89,0.00019178,2]
[323339672,1713906641145,-500.0,0.00019178,2]
[323339674,1713906641155,-554.02,0.00019178,2]
[323339676,1713906641165,-949.8,0.00019178,2]
[323339678,1713906641175,-1567.71,0.00019178,2]
[323339680,1713906641186,-500.0,0.00019178,2]
[323339682,1713906641195,-500.0,0.00019178,2]
[323339684,1713906641204,-380.04362525,0.00019178,2]
[323339686,1713906641213,-500.0,0.00019178,2]
[323339688,1713906641222,-1038.44,0.00019178,2]
[323339690,1713906641231,-500.0,0.00019178,2]
[323339692,1713906641240,-500.0,0.00019178,2]
[323339694,1713906641250,-500.0,0.00019178,2]
[323339696,1713906641259,-500.0,0.00019178,2]
[323339698,1713906641268,-500.0,0.00019178,2]
[323339700,1713906641277,-500.0,0.00019178,2]
[323339702,1713906641287,-500.0,0.00019178,2]
[323339704,1713906641297,-500.0,0.00019178,2]
[323339706,1713906641306,-500.0,0.00019178,2]
[323339708,1713906641315,-500.0,0.00019178,2]
[323339710,1713906641325,-500.0,0.00019178,2]
[323339712,1713906641334,-500.0,0.00019178,2]
[323339714,1713906641344,-500.0,0.00019178,2]
[323339716,1713906641353,-924.22,0.00019178,2]
[323339718,1713906641363,-902.89,0.00019178,2]
[323339720,1713906641372,-500.0,0.00019178,2]
[323339722,1713906641381,-993.79,0.00019178,2]
[323339725,1713906641392,-554.07,0.00019178,2]
[323339727,1713906641400,-500.0,0.00019178,2]
[323339729,1713906641410,-500.0,0.00019178,2]
[323339731,1713906641419,-786.38,0.00019178,2]
[323339733,1713906641427,-726.49,0.00019178,2]
[323339735,1713906641437,-500.0,0.00019178,2]
[323339737,1713906641445,-500.0,0.00019178,2]
[323339739,1713906641455,-531.87,0.00019178,2]
[323339741,1713906641464,-2258.36,0.00019178,2]
[323339742,1713906641474,-500.0,0.00019178,2]
[323339744,1713906641483,-500.0,0.00019178,2]
[323339746,1713906641493,-1423.75,0.00019178,2]
[323339748,1713906641502,-500.0,0.00019178,2]
[323339749,1713906641511,-900.74,0.00019178,2]
[323339751,1713906641520,-251.20798367,0.00019178,2]
[323339752,1713906641529,-1478.54,0.00019178,2]
[323339754,1713906641538,-151.0,0.00019178,2]
[323339755,1713906641547,-500.0,0.00019178,2]
[323339756,1713906641556,-500.0,0.00019178,2]
[323339757,1713906641565,-500.0,0.00019178,2]
[323339758,1713906641574,-500.0,0.00019178,2]
[323339759,1713906641585,-1668.39,0.00019178,2]
[323339760,1713906641594,-500.0,0.00019178,2]
[323339761,1713906641603,-678.36,0.00019178,2]
[323339762,1713906641612,-1376.89,0.00019178,2]
[323339763,1713906641622,-500.0,0.00019178,2]
[323339764,1713906641632,-500.0,0.00019178,2]
[323339765,1713906641640,-500.0,0.00019178,2]
[323339766,1713906641650,-500.0,0.00019178,2]
[323339767,1713906641659,-2107.07,0.00019178,2]
[323339768,1713906641668,-1737.0,0.00019178,2]
[323339769,1713906641677,-320.3555678,0.00019178,2]
[323339770,1713906641688,-500.0,0.00019178,2]
[323339771,1713906641697,-1067.53,0.00019178,2]
[323339772,1713906641706,-500.0,0.00019178,2]
[323339773,1713906641715,-532.06,0.00019178,2]
[323339775,1713906641726,-692.64,0.00019178,2]
[323339777,1713906641738,-500.0,0.00019178,2]
[323339780,1713906641748,-500.0,0.00019178,2]
[323339782,1713906641757,-233.18743889,0.00019178,2]
[323339784,1713906641766,-500.0,0.00019178,2]
[323339786,1713906641775,-541.15470908,0.00019178,2]
[323339788,1713906641784,-1195.52,0.00019178,2]
[323339790,1713906641793,-500.0,0.00019178,2]
[323339791,1713906641802,-500.0,0.00019178,2]
[323339794,1713906641812,-1607.99,0.00019178,2]
[323339796,1713906641821,-482.1180714,0.00019178,2]
[323339797,1713906641830,-500.0,0.00019178,2]
[323339800,1713906641841,-500.0,0.00019178,2]
[323339801,1713906641851,-500.0,0.00019178,2]
[323339803,1713906641860,-500.0,0.00019178,2]
[323339805,1713906641870,-500.0,0.00019178,2]
[323339808,1713906641880,-500.0,0.00019178,2]
[323339810,1713906641889,-500.0,0.00019178,2]
[323339812,1713906641899,-500.0,0.00019178,2]
[323339814,1713906641908,-265.84844893,0.00019178,2]
[323339816,1713906641917,-500.0,0.00019178,2]
[323339818,1713906641926,-500.0,0.00019178,2]
[323339820,1713906641935,-160.19034128,0.00019178,2]
[323339822,1713906641945,-860.82,0.00019178,2]
[323339824,1713906641955,-500.0,0.00019178,2]
[323339826,1713906641964,-500.0,0.00019178,2]
[323339828,1713906641973,-500.0,0.00019178,2]
[323339830,1713906641982,-500.0,0.00019178,2]
[323339832,1713906641992,-500.0,0.00019178,2]
[323339834,1713906642001,-608.17727611,0.00019178,2]
[323339836,1713906642010,-500.0,0.00019178,2]
[323339837,1713906642020,-500.0,0.00019178,2]
[323339840,1713906642029,-500.0,0.00019178,2]
[323339841,1713906642039,-500.0,0.00019178,2]
[323339844,1713906642049,-500.0,0.00019178,2]
[323339846,1713906642059,-412.73686097,0.00019178,2]
[323339848,1713906642069,-500.0,0.00019178,2]
[323339850,1713906642079,-531.87,0.00019178,2]
[323339852,1713906642089,-500.0,0.00019178,2]
[323339854,1713906642098,-721.01,0.00019178,2]
[323339855,1713906642109,-500.0,0.00019178,2]
[323339858,1713906642121,-500.0,0.00019178,2]
[323339860,1713906642130,-195.44877316,0.00019178,2]
[323339861,1713906642139,-500.0,0.00019178,2]
[323339863,1713906642148,-500.0,0.00019178,2]
[323339865,1713906642160,-500.0,0.00019178,2]
[323339867,1713906642170,-500.0,0.00019178,2]
[323339869,1713906642179,-500.0,0.00019178,2]
[323339872,1713906642189,-500.0,0.00019178,2]
[323339887,1713906642322,-337.45954281,0.00019178,2]
[323339889,1713906642334,-1486.41,0.00019178,2]
[323339891,1713906642344,-500.0,0.00019178,2]
[323339893,1713906642353,-500.0,0.00019178,2]
[323339895,1713906642363,-500.0,0.00019178,2]
[323339896,1713906642372,-500.0,0.00019178,2]
[323339897,1713906642381,-500.0,0.00019178,2]
[323339898,1713906642390,-500.0,0.00019178,2]
[323339899,1713906642399,-500.0,0.00019178,2]
[323339900,1713906642408,-437.4507695,0.00019178,2]
[323339901,1713906642417,-500.0,0.00019178,2]
[323339902,1713906642426,-500.0,0.00019178,2]
[323339903,1713906642436,-500.0,0.00019178,2]
[323339904,1713906642445,-500.0,0.00019178,2]
[323339905,1713906642454,-500.0,0.00019178,2]
[323339906,1713906642463,-500.0,0.00019178,2]
[323339907,1713906642471,-500.0,0.00019178,2]
[323339908,1713906642480,-312.68615775,0.00019178,2]
[323339909,1713906642489,-500.0,0.00019178,2]
[323339910,1713906642498,-500.0,0.00019178,2]
[323339911,1713906642507,-500.0,0.00019178,2]
[323339912,1713906642515,-500.0,0.00019178,2]
[323339913,1713906642524,-500.0,0.00019178,2]
[323339914,1713906642533,-1236.23,0.00019178,2]
[323339915,1713906642542,-500.0,0.00019178,2]
[323339917,1713906642551,-501.09993963,0.00019178,2]
[323339919,1713906642560,-2278.12,0.00019178,2]
[323339921,1713906642569,-500.0,0.00019178,2]
[323339923,1713906642580,-500.0,0.00019178,2]
[323339925,1713906642590,-500.0,0.00019178,2]
[323339927,1713906642599,-200.0,0.00019178,2]
[323339929,1713906642608,-500.0,0.00019178,2]
[323339931,1713906642617,-500.0,0.00019178,2]
[323339933,1713906642626,-10286.09,0.00019178,2]
[323339935,1713906642635,-500.0,0.00019178,2]
[323339937,1713906642644,-500.0,0.00019178,2]
[323339939,1713906642653,-500.0,0.00019178,2]
[323339941,1713906642662,-944.84,0.00019178,2]
[323339943,1713906642671,-1883.18,0.00019178,2]
[323339945,1713906642680,-500.0,0.00019178,2]
[323339946,1713906642689,-500.0,0.00019178,2]
[323339948,1713906642699,-457.40852823,0.00019178,2]
[323339950,1713906642708,-500.16446698,0.00019178,2]
[323339953,1713906642718,-180.88720274,0.00019178,2]
[323339954,1713906642727,-500.0,0.00019178,2]
[323339956,1713906642737,-503.77124223,0.00019178,2]
[323339959,1713906642746,-574.81,0.00019178,2]
[323339960,1713906642755,-500.0,0.00019178,2]
[323339962,1713906642765,-300.10057165,0.00019178,2]
[323339964,1713906642776,-1124.79,0.00019178,2]
[323339966,1713906642785,-745.02,0.00019178,2]
[323339969,1713906642795,-500.0,0.00019178,2]
[323339970,1713906642805,-500.0,0.00019178,2]
[323339972,1713906642814,-505.99866513,0.00019178,2]
[323339974,1713906642823,-1217.1,0.00019178,2]
[323339976,1713906642834,-500.0,0.00019178,2]
[323339978,1713906642843,-500.0,0.00019178,2]
[323339980,1713906642852,-674.83,0.00019178,2]
[323339982,1713906642861,-500.0,0.00019178,2]
[323339984,1713906642871,-3698.81,0.00019178,2]
[323339987,1713906642880,-553.52659239,0.00019178,2]
[323339989,1713906642891,-500.0,0.00019178,2]
[323339990,1713906642899,-242.06974814,0.00019178,2]
[323339992,1713906642908,-500.0,0.00019178,2]
[323339994,1713906642917,-500.0,0.00019178,2]
[323339996,1713906642926,-500.0,0.00019178,2]
[323339998,1713906642935,-634.85735327,0.00019178,2]
[323340000,1713906642944,-713.93,0.00019178,2]
[323340002,1713906642953,-500.0,0.00019178,2]
[323340004,1713906642962,-500.0,0.00019178,2]
[323340006,1713906642971,-500.0,0.00019178,2]
[323340008,1713906642980,-506.16169682,0.00019178,2]
[323340010,1713906642990,-500.0,0.00019178,2]
[323340013,1713906643000,-7456.02,0.00019178,2]
[323340015,1713906643009,-500.0,0.00019178,2]
[323340017,1713906643017,-500.0,0.00019178,2]
[323340019,1713906643026,-500.0,0.00019178,2]
[323340021,1713906643035,-500.0,0.00019178,2]
[323340023,1713906643044,-567.42,0.00019178,2]
[323340026,1713906643053,-500.0,0.00019178,2]
[323340028,1713906643062,-500.0,0.00019178,2]
[323340031,1713906643070,-500.0,0.00019178,2]
[323340033,1713906643081,-500.0,0.00019178,2]
[323340035,1713906643090,-500.0,0.00019178,2]
[323340037,1713906643099,-500.0,0.00019178,2]
[323340039,1713906643108,-7031.43,0.00019178,2]
[323340041,1713906643121,-646.74442247,0.00019178,2]
[323340043,1713906643130,-500.0,0.00019178,2]
[323340045,1713906643139,-500.0,0.00019178,2]
[323340047,1713906643149,-500.0,0.00019178,2]
[323340049,1713906643159,-760.73,0.00019178,2]
[323340051,1713906643168,-1432.34,0.00019178,2]
[323340053,1713906643178,-3253.21,0.00019178,2]
[323340055,1713906643187,-500.0,0.00019178,2]
[323340057,1713906643198,-5262.87,0.00019178,2]
[323340059,1713906643208,-4015.64,0.00019178,2]
[323340062,1713906643218,-928.49,0.00019178,2]
[323340064,1713906643227,-524.08030379,0.00019178,2]
[323340066,1713906643236,-500.0,0.00019178,2]
[323340068,1713906643245,-500.0,0.00019178,2]
[323340070,1713906643254,-500.0,0.00019178,2]
[323340072,1713906643263,-500.0,0.00019178,2]
[323340075,1713906643273,-500.0,0.00019178,2]
[323340077,1713906643281,-633.96,0.00019178,2]
[323340079,1713906643291,-518.33017643,0.00019178,2]
[323340081,1713906643300,-1467.47,0.00019178,2]
[323340083,1713906643308,-500.0,0.00019178,2]
[323340085,1713906643317,-500.0,0.00019178,2]
[323340086,1713906643327,-500.0,0.00019178,2]
[323340088,1713906643336,-508.80885748,0.00019178,2]
[323340090,1713906643345,-500.0,0.00019178,2]
[323340092,1713906643354,-500.0,0.00019178,2]
[323340094,1713906643364,-626.38,0.00019178,2]
[323340096,1713906643373,-944.49,0.00019178,2]
[323340098,1713906643381,-500.0,0.00019178,2]
[323340100,1713906643390,-500.0,0.00019178,2]
[323340102,1713906643399,-500.0,0.00019178,2]
[323340104,1713906643408,-567.37810752,0.00019178,2]
[323340106,1713906643418,-500.0,0.00019178,2]
[323340108,1713906643427,-1655.39,0.00019178,2]
[323340110,1713906643436,-500.0,0.00019178,2]
[323340112,1713906643445,-500.0,0.00019178,2]
[323340114,1713906643454,-500.0,0.00019178,2]
[323340116,1713906643463,-500.0,0.00019178,2]
[323340118,1713906643472,-500.0,0.00019178,2]
[323340120,1713906643481,-500.0,0.00019178,2]
[323340122,1713906643490,-946.8,0.00019178,2]
[323340124,1713906643499,-2551.94,0.00019178,2]
[323340126,1713906643507,-2595.58,0.00019178,2]
[323340128,1713906643517,-500.0,0.00019178,2]
[323340130,1713906643526,-500.0,0.00019178,2]
[323340132,1713906643535,-500.0,0.00019178,2]
[323340134,1713906643544,-1746.36,0.00019178,2]
[323340136,1713906643553,-500.0,0.00019178,2]
[323340138,1713906643563,-814.3,0.00019178,2]
[323340140,1713906643572,-500.0,0.00019178,2]
[323340142,1713906643582,-500.0,0.00019178,2]
[323340144,1713906643591,-599.33,0.00019178,2]
[323340146,1713906643600,-500.0,0.00019178,2]
[323340148,1713906643609,-500.0,0.00019178,2]
[323340150,1713906643619,-500.0,0.00019178,2]
[323340152,1713906643628,-817.94,0.00019178,2]
[323340154,1713906643638,-683.42,0.00019178,2]
[323340156,1713906643647,-500.0,0.00019178,2]
[323340158,1713906643656,-500.0,0.00019178,2]
[323340160,1713906643665,-543.56,0.00019178,2]
[323340162,1713906643674,-500.0,0.00019178,2]
[323340164,1713906643683,-500.0,0.00019178,2]
[323340166,1713906643693,-500.0,0.00019178,2]
[323340168,1713906643702,-500.0,0.00019178,2]
[323340170,1713906643710,-500.0,0.00019178,2]
[323340172,1713906643719,-500.0,0.00019178,2]
[323340174,1713906643728,-500.0,0.00019178,2]
[323340176,1713906643737,-500.0,0.00019178,2]
[323340178,1713906643746,-500.0,0.00019178,2]
[323340180,1713906643756,-500.0,0.00019178,2]
[323340182,1713906643765,-500.0,0.00019178,2]
[323340184,1713906643774,-500.0,0.00019178,2]
[323340186,1713906643782,-24227.66,0.00019178,2]